fUSD/lending_fUSD_20240617
["ID","MTS","AMOUNT","RATE_DAILY","PERIOD"]
[329728921,1718625047868,-617.0,0.00021894,2]
[329728922,1718625047883,-811.0,0.00021894,2]
[329728923,1718625047906,-1653.0,0.00021894,2]
[329728924,1718625047921,-2409.0,0.00021894,2]
[329728925,1718625047933,-447.0,0.00021894,2]
[329728926,1718625047951,-1304.0,0.00021894,2]
[329728927,1718625047993,-150.0,0.00021894,2]
[329728928,1718625048026,-1981.0,0.00021894,2]
[329728929,1718625048065,-547.0,0.00021894,2]
[329728930,1718625048078,-3197.0,0.00021894,2]
[329728931,1718625048097,-150.0,0.00021894,2]
[329728932,1718625048113,-5162.0,0.00021894,2]
[329728933,1718625048125,-290.0,0.00021894,2]
[329728934,1718625048168,-150.0,0.00021894,2]
[329728935,1718625048179,-38118.0,0.00021894,2]
[329728936,1718625048190,-5792.0,0.00021894,2]
[329728937,1718625048200,-150.0,0.00021894,2]
[329728938,1718625048211,-1196.0,0.00021894,2]
[329728939,1718625048222,-1659.0,0.00021894,2]
[329728940,1718625048234,-258.675,0.00021894,2]
[329728941,1718625048251,-737.05590411,0.000219,2]
[329728942,1718625048264,-229.57,0.00021918,2]
[329728943,1718625048299,-354.13,0.00021918,2]
[329728944,1718625048310,-250.0,0.00021918,2]
[329728945,1718625048342,-150.0,0.00021918,2]
[329728946,1718625048360,-7736.0,0.00022,2]
[329728947,1718625048380,-2502.94,0.00022,2]
[329728948,1718625048391,-648.49,0.00022074,2]
[329728949,1718625048406,-4918.54598741,0.00022364,2]
[329728950,1718625048418,-151.0,0.00022364,7]
[329728951,1718625048430,-152.744927,0.00022364,7]
[329728952,1718625048442,-2146.039734,0.00022364,7]
[329728953,1718625048459,-392.083845,0.00022466,2]
[329728954,1718625048471,-151.0,0.00022933,3]
[329728955,1718625048491,-241.3882198,0.00023,2]
[329728956,1718625048502,-1062.23973978,0.00023,2]
[329728957,1718625048517,-170.33,0.0002313,2]
[329728958,1718625048538,-260.86,0.00023288,2]
[329728959,1718625048560,-380.0,0.00023288,2]
[329728960,1718625048584,-381.9,0.00023288,2]
[329728961,1718625048595,-392.083845,0.00023288,2]
[329728962,1718625048636,-500.0,0.00023288,2]
[329728963,1718625048649,-500.0,0.00023288,2]
[329728964,1718625048676,-500.0,0.00023288,2]
[329728965,1718625048689,-500.0,0.00023288,2]
[329728966,1718625048700,-500.0,0.00023288,2]
[329728967,1718625048712,-500.0,0.00023288,2]
[329728968,1718625048724,-500.0,0.00023288,2]
[329728969,1718625048742,-500.0,0.00023288,2]
[329728970,1718625048755,-500.0,0.00023288,2]
[329728971,1718625048771,-500.0,0.00023288,2]
[329728972,1718625048787,-500.0,0.00023288,2]
[329728973,1718625048798,-500.0,0.00023288,2]
[329728974,1718625048817,-500.0,0.00023288,2]
[329728975,1718625048838,-500.0,0.00023288,2]
[329728976,1718625048864,-500.0,0.00023288,2]
[329728977,1718625048875,-500.0,0.00023288,2]
[329728978,1718625048888,-500.0,0.00023288,2]
[329728979,1718625048912,-500.0,0.00023288,2]
[329728980,1718625048931,-500.0,0.00023288,2]
[329728981,1718625048944,-500.0,0.00023288,2]
[329728982,1718625048958,-500.0,0.00023288,2]
[329728983,1718625048997,-500.0,0.00023288,2]
[329728984,1718625049012,-500.0,0.00023288,2]
[329728985,1718625049038,-500.0,0.00023288,2]
[329728986,1718625049068,-500.0,0.00023288,2]
[329728987,1718625049086,-500.0,0.00023288,2]
[329728988,1718625049097,-500.0,0.00023288,2]
[329728989,1718625049110,-500.0,0.00023288,2]
[329728990,1718625049122,-500.0,0.00023288,2]
[329728991,1718625049145,-500.0,0.00023288,2]
[329728992,1718625049159,-500.0,0.00023288,2]
[329728993,1718625049170,-500.0,0.00023288,2]
[329728994,1718625049188,-500.0,0.00023288,2]
[329728995,1718625049202,-500.0,0.00023288,2]
[329728996,1718625049218,-500.0,0.00023288,2]
[329728997,1718625049231,-500.0,0.00023288,2]
[329728998,1718625049243,-500.0,0.00023288,2]
[329728999,1718625049257,-500.0,0.00023288,2]
[329729000,1718625049270,-500.0,0.00023288,2]
[329729001,1718625049284,-500.0,0.00023288,2]
[329729002,1718625049296,-500.0,0.00023288,2]
[329729003,1718625049308,-500.0,0.00023288,2]
[329729004,1718625049328,-500.0,0.00023288,2]
[329729005,1718625049340,-500.0,0.00023288,2]
[329729006,1718625049360,-500.0,0.00023288,2]
[329729007,1718625049371,-500.0,0.00023288,2]
[329729008,1718625049383,-500.0,0.00023288,2]
[329729009,1718625049397,-500.0,0.00023288,2]
[329729010,1718625049409,-500.0,0.00023288,2]
[329729011,1718625049432,-151.0,0.00023288,7]
[329729012,1718625049460,-151.0,0.00023288,7]
[329729013,1718625049478,-151.0,0.00023288,7]
[329729014,1718625049490,-151.0,0.00023288,7]
[329729015,1718625049508,-222.198442,0.00023288,7]
[329729016,1718625049520,-222.198442,0.00023288,7]
[329729017,1718625049545,-151.0,0.00023288,7]
[329729018,1718625049556,-151.0,0.00023288,7]
[329729019,1718625049576,-151.0,0.00023288,7]
[329729020,1718625049588,-152.786885,0.00023288,7]
[329729021,1718625049617,-157.65822,0.00023288,7]
[329729022,1718625049644,-151.0,0.00023288,7]
[329729023,1718625049668,-151.0,0.00023288,7]
[329729024,1718625049682,-151.0,0.00023288,7]
[329729025,1718625049697,-500.0,0.00023288,2]
[329729026,1718625049723,-151.0,0.00023288,7]
[329729027,1718625049736,-500.0,0.00023288,2]
[329729028,1718625049758,-500.0,0.00023288,2]
[329729029,1718625049769,-151.0,0.00023288,7]
[329729030,1718625049788,-151.0,0.00023288,7]
[329729031,1718625049809,-154.525157,0.00023288,7]
[329729032,1718625049820,-500.0,0.00023288,2]
[329729033,1718625049834,-500.0,0.00023288,2]
[329729034,1718625049845,-500.0,0.00023288,2]
[329729035,1718625049863,-151.0,0.00023288,7]
[329729036,1718625049875,-500.0,0.00023288,2]
[329729037,1718625049890,-151.0,0.00023288,3]
[329729038,1718625049902,-217.266397,0.00023288,7]
[329729039,1718625049920,-217.266397,0.00023288,7]
[329729040,1718625049931,-151.0,0.00023288,7]
[329729041,1718625049951,-151.0,0.00023288,7]
[329729042,1718625049965,-500.0,0.00023288,2]
[329729043,1718625049977,-500.0,0.00023288,2]
[329729044,1718625050010,-500.0,0.00023288,2]
[329729045,1718625050037,-500.0,0.00023288,2]
[329729046,1718625050054,-500.0,0.00023288,2]
[329729047,1718625050075,-500.0,0.00023288,2]
[329729048,1718625050095,-500.0,0.00023288,2]
[329729049,1718625050113,-500.0,0.00023288,2]
[329729050,1718625050144,-500.0,0.00023288,2]
[329729051,1718625050159,-500.0,0.00023288,2]
[329729052,1718625050178,-157.326646,0.00023288,7]
[329729053,1718625050201,-500.0,0.00023288,2]
[329729054,1718625050234,-500.0,0.00023288,2]
[329729055,1718625050316,-500.0,0.00023288,2]
[329729056,1718625050342,-500.0,0.00023288,2]
[329729057,1718625050365,-151.0,0.00023288,7]
[329729058,1718625050378,-500.0,0.00023288,2]
[329729059,1718625050397,-500.0,0.00023288,2]
[329729060,1718625050411,-500.0,0.00023288,2]
[329729061,1718625050425,-500.0,0.00023288,2]
[329729062,1718625050441,-500.0,0.00023288,2]
[329729063,1718625050463,-500.0,0.00023288,2]
[329729064,1718625050485,-500.0,0.00023288,2]
[329729065,1718625050498,-500.0,0.00023288,2]
[329729066,1718625050532,-500.0,0.00023288,2]
[329729067,1718625050547,-500.0,0.00023288,2]
[329729068,1718625050577,-500.0,0.00023288,2]
[329729069,1718625050590,-500.0,0.00023288,2]
[329729070,1718625050603,-500.0,0.00023288,2]
[329729071,1718625050615,-500.0,0.00023288,2]
[329729072,1718625050627,-500.0,0.00023288,2]
[329729073,1718625050639,-500.0,0.00023288,2]
[329729074,1718625050651,-500.0,0.00023288,2]
[329729075,1718625050667,-500.0,0.00023288,2]
[329729076,1718625050707,-500.0,0.00023288,2]
[329729077,1718625050727,-500.0,0.00023288,2]
[329729078,1718625050741,-500.0,0.00023288,2]
[329729079,1718625050759,-500.0,0.00023288,2]
[329729080,1718625050770,-500.0,0.00023288,2]
[329729081,1718625050797,-500.0,0.00023288,2]
[329729082,1718625050809,-500.0,0.00023288,2]
[329729083,1718625050824,-500.0,0.00023288,2]
[329729084,1718625050841,-500.0,0.00023288,2]
[329729085,1718625050852,-500.0,0.00023288,2]
[329729086,1718625050864,-500.0,0.00023288,2]
[329729087,1718625050875,-500.0,0.00023288,2]
[329729088,1718625050885,-500.0,0.00023288,2]
[329729089,1718625050896,-500.0,0.00023288,2]
[329729090,1718625050909,-500.0,0.00023288,2]
[329729091,1718625050921,-500.0,0.00023288,2]
[329729092,1718625050932,-500.0,0.00023288,2]
[329729093,1718625050942,-500.0,0.00023288,2]
[329729094,1718625050956,-500.0,0.00023288,2]
[329729095,1718625050967,-500.0,0.00023288,2]
[329729096,1718625050979,-500.0,0.00023288,2]
[329729097,1718625050993,-500.0,0.00023288,2]
[329729098,1718625051011,-500.0,0.00023288,2]
[329729099,1718625051026,-500.0,0.00023288,2]
[329729100,1718625051037,-500.0,0.00023288,2]
[329729101,1718625051049,-500.0,0.00023288,2]
[329729103,1718625051062,-500.0,0.00023288,2]
[329729105,1718625051078,-500.0,0.00023288,2]
[329729107,1718625051104,-500.0,0.00023288,2]
[329729109,1718625051116,-151.0,0.00023288,7]
[329729111,1718625051132,-151.0,0.00023288,7]
[329729113,1718625051148,-151.0,0.00023288,7]
[329729115,1718625051159,-151.0,0.00023288,7]
[329729117,1718625051170,-151.0,0.00023288,7]
[329729119,1718625051184,-325.607582,0.00023288,7]
[329729121,1718625051204,-325.607582,0.00023288,7]
[329729123,1718625051215,-151.0,0.00023288,7]
[329729125,1718625051229,-151.0,0.00023288,7]
[329729127,1718625051246,-151.0,0.00023288,7]
[329729128,1718625051262,-151.0,0.00023288,7]
[329729130,1718625051275,-157.674058,0.00023288,7]
[329729132,1718625051303,-157.674058,0.00023288,7]
[329729133,1718625051315,-151.0,0.00023288,7]
[329729135,1718625051332,-330.962042,0.00023288,7]
[329729137,1718625051354,-151.0,0.00023288,7]
[329729138,1718625051370,-330.962042,0.00023288,7]
[329729139,1718625051388,-151.0,0.00023288,7]
[329729140,1718625051400,-151.0,0.00023288,7]
[329729141,1718625051431,-382.631433,0.00023288,7]
[329729142,1718625051442,-382.631433,0.00023288,7]
[329729143,1718625051454,-151.0,0.00023288,7]
[329729144,1718625051469,-151.0,0.00023288,7]
[329729145,1718625051481,-151.0,0.00023288,7]
[329729146,1718625051492,-151.0,0.00023288,7]
[329729147,1718625051504,-151.0,0.00023288,7]
[329729148,1718625051517,-151.0,0.00023288,7]
[329729149,1718625051531,-151.0,0.00023288,7]
[329729150,1718625051544,-283.453045,0.00023288,7]
[329729151,1718625051555,-151.0,0.00023288,7]
[329729152,1718625051570,-178.696019,0.00023288,7]
[329729154,1718625051582,-178.696019,0.00023288,7]
[329729156,1718625051593,-151.0,0.00023288,7]
[329729157,1718625051624,-151.0,0.00023288,7]
[329729159,1718625051636,-151.0,0.00023288,7]
[329729161,1718625051647,-1705.50327426,0.000234,2]
[329729164,1718625051668,-298.073162,0.00023477,7]
[329729166,1718625051687,-151.0,0.00023477,7]
[329729169,1718625051707,-151.0,0.00023477,7]
[329729170,1718625051718,-151.0,0.00023477,7]
[329729172,1718625051747,-152.473571,0.00023477,7]
[329729175,1718625051771,-151.0,0.00023477,7]
[329729177,1718625051786,-188.931183,0.00023477,7]
[329729179,1718625051798,-151.0,0.00023477,7]
[329729180,1718625051809,-151.0,0.00023477,7]
[329729183,1718625051825,-175.606947,0.00023477,7]
[329729185,1718625051845,-428.192811,0.00023477,7]
[329729186,1718625051859,-428.192811,0.00023477,7]
[329729188,1718625051869,-151.0,0.00023477,7]
[329729190,1718625051886,-4918.54598741,0.00023573,2]
[329729192,1718625051899,-154.543153,0.00023573,7]
[329729194,1718625051911,-151.0,0.00023573,7]
[329729196,1718625051921,-151.542055,0.00023573,7]
[329729198,1718625051932,-155.78973169,0.000238,2]
[329729200,1718625051943,-2502.94,0.000238,2]
[329729202,1718625051954,-156.261198,0.00024,7]
[329729204,1718625051977,-151.0,0.00024,7]
[329729206,1718625051991,-296.5235553,0.00024,2]
[329729208,1718625052004,-5000.0,0.00024,2]
[329729210,1718625052017,-7736.0,0.00024,2]
[329729213,1718625052039,-1062.0,0.00024,2]
[329729215,1718625052102,-2837.96889,0.00024,2]
[329729217,1718625052114,-151.0,0.00024001,3]
[329729219,1718625052129,-2059.87583728,0.000241,2]
[329729221,1718625052143,-392.083845,0.0002411,2]
[329729223,1718625052155,-180.0,0.0002423,2]
[329729225,1718625052166,-648.49,0.00024338,2]
[329729228,1718625052195,-637.97,0.00024384,2]
[329729230,1718625052210,-156.04,0.00024384,2]
[329729233,1718625052230,-151.0,0.000244,7]
[329729234,1718625052245,-151.0,0.000244,7]
[329729236,1718625052256,-151.0,0.000244,7]
[329729238,1718625052269,-1411.0,0.000244,2]
[329729240,1718625052282,-4466.77,0.00024551,2]
[329729242,1718625052298,-170.33,0.00024576,2]
[329729244,1718625052315,-4918.54598741,0.00024782,2]
[329729247,1718625052331,-151.0,0.00024782,7]
[329729248,1718625052345,-154.805073,0.00024782,7]
[329729250,1718625052359,-151.0,0.00024782,7]
[329729252,1718625052373,-152.042745,0.00024782,7]
[329729254,1718625052388,-266.404316,0.00024782,7]
[329729256,1718625052406,-266.404316,0.00024782,7]
[329729258,1718625052420,-13278.19587916,0.00024798,2]
[329729260,1718625052433,-13278.19587911,0.00024798,2]
[329729263,1718625052479,-13278.19587911,0.00024798,2]
[329729265,1718625052502,-13278.19587911,0.00024798,2]
[329729267,1718625052519,-13278.19587911,0.00024798,2]
[329729269,1718625052536,-13278.19587911,0.00024798,2]
[329729271,1718625052548,-13278.19587911,0.00024798,2]
[329729273,1718625052565,-13278.19587911,0.00024798,2]
[329729275,1718625052584,-178.696019,0.00024798,7]
[329729276,1718625052614,-178.696019,0.00024798,7]
[329729286,1718625052806,-151.0,0.00024798,7]
[329729288,1718625052818,-151.0,0.00024798,7]
[329729290,1718625052830,-151.0,0.00024798,7]
[329729292,1718625052856,-173.88973448,0.00024799,2]
[329729294,1718625052868,-173.88973447,0.00024799,2]
[329729296,1718625052882,-3172.4,0.000248,2]
[329729299,1718625052912,-151.0,0.000248,7]
[329729301,1718625052924,-153.7444,0.000248,7]
[329729303,1718625052948,-151.0,0.000248,7]
[329729305,1718625052959,-151.0,0.000248,7]
[329729307,1718625052977,-272.686203,0.000248,7]
[329729308,1718625052989,-151.0,0.000248,7]
[329729309,1718625052999,-150.421,0.00024835,2]
[329729311,1718625053010,-150.0,0.00024893,10]
[329729313,1718625053022,-151.0,0.00024894,7]
[329729315,1718625053034,-151.0,0.00024894,7]
[329729317,1718625053050,-151.0,0.00024894,7]
[329729319,1718625053062,-151.0,0.00024894,7]
[329729321,1718625053074,-382.631433,0.00024894,7]
[329729323,1718625053085,-382.631433,0.00024894,7]
[329729325,1718625053097,-151.0,0.00024894,7]
[329729327,1718625053111,-359.0,0.00024894,2]
[329729329,1718625053125,-1271.0,0.00024894,2]
[329729331,1718625053136,-1830.0,0.00024894,2]
[329729333,1718625053150,-615.0,0.00024894,2]
[329729335,1718625053162,-1651.0,0.00024894,2]
[329729336,1718625053173,-811.0,0.00024894,2]
[329729338,1718625053195,-1903.731,0.00024894,2]
[329729340,1718625053207,-447.0,0.00024894,2]
[329729342,1718625053222,-1304.0,0.00024894,2]
[329729344,1718625053236,-150.0,0.00024894,2]
[329729346,1718625053255,-1981.0,0.00024894,2]
[329729348,1718625053274,-547.0,0.00024894,2]
[329729351,1718625053291,-3197.0,0.00024894,2]
[329729353,1718625053315,-5162.0,0.00024894,2]
[329729355,1718625053326,-290.0,0.00024894,2]
[329729357,1718625053337,-38118.0,0.00024894,2]
[329729359,1718625053357,-5792.0,0.00024894,2]
[329729362,1718625053395,-1196.0,0.00024894,2]
[329729364,1718625053414,-1659.0,0.00024894,2]
[329729366,1718625053432,-150.0,0.00024894,2]
[329729368,1718625053459,-2263.0,0.000249,2]
[329729370,1718625053476,-155.28447767,0.000249,2]
[329729373,1718625053489,-6807.09530734,0.000249,2]
[329729375,1718625053502,-392.083845,0.00024932,2]
[329729376,1718625053515,-585.63532094,0.00024999,4]
[329729378,1718625053527,-834.00313039,0.00025,2]
[329729380,1718625053539,-11596.67285017,0.00025,7]
[329729381,1718625053549,-185.06871071,0.00025,2]
[329729384,1718625053566,-225.46652722,0.00025,2]
[329729386,1718625053586,-159.27764484,0.00025,2]
[329729389,1718625053604,-155.0,0.00025,2]
[329729391,1718625053623,-7432.94330671,0.00025,2]
[329729393,1718625053637,-707.49477052,0.00025,2]
[329729395,1718625053656,-14488.05698351,0.00025,2]
[329729397,1718625053667,-326.46650674,0.00025,2]
[329729399,1718625053683,-1278.71461203,0.00025,2]
[329729401,1718625053706,-931.71971366,0.00025,2]
[329729402,1718625053726,-190.12147347,0.00025,2]
[329729404,1718625053749,-238.728001,0.00025,2]
[329729406,1718625053791,-164.07759522,0.00025,2]
[329729408,1718625053813,-155.0,0.00025,2]
[329729410,1718625053832,-1062.0,0.00025,2]
[329729412,1718625053886,-151.0,0.00025,7]
[329729413,1718625053900,-151.0,0.00025,7]
[329729415,1718625053920,-151.0,0.00025,7]
[329729417,1718625053948,-151.0,0.00025,7]
[329729419,1718625053979,-325.607582,0.00025,7]
[329729420,1718625053994,-325.607582,0.00025,7]
[329729422,1718625054017,-151.0,0.00025,7]
[329729423,1718625054029,-151.0,0.00025,7]
[329729426,1718625054063,-151.0,0.00025,7]
[329729428,1718625054096,-151.0,0.00025,7]
[329729430,1718625054130,-157.674058,0.00025,7]
[329729433,1718625054174,-157.674058,0.00025,7]
[329729435,1718625054186,-330.962042,0.00025,7]
[329729436,1718625054202,-330.962042,0.00025,7]
[329729439,1718625054214,-461.08803,0.00025,5]
[329729440,1718625054226,-1000.0,0.00025,2]
[329729442,1718625054251,-151.0,0.0002507,4]
[329729444,1718625054274,-2502.94,0.000251,2]
[329729446,1718625054290,-1000.0,0.00025205,2]
[329729448,1718625054322,-7736.0,0.000253,2]
[329729450,1718625054343,-1705.50327426,0.000253,2]
[329729451,1718625054368,-151.0,0.00025536,2]
[329729453,1718625054386,-13278.19587911,0.00025722,2]
[329729456,1718625054427,-392.083845,0.00025753,2]
[329729458,1718625054444,-9777.12,0.00025786,2]
[329729461,1718625054479,-12180.49,0.00025786,2]
[329729464,1718625054513,-11582.01,0.00025786,2]
[329729465,1718625054550,-151.0,0.00025786,7]
[329729466,1718625054562,-241.429316,0.00025786,7]
[329729468,1718625054574,-151.0,0.00025786,3]
[329729469,1718625054588,-217.266397,0.00025786,7]
[329729472,1718625054617,-217.266397,0.00025786,7]
[329729474,1718625054644,-151.0,0.00025786,7]
[329729477,1718625054665,-18073.92790832,0.00025794,2]
[329729478,1718625054684,-152.0,0.00025811,3]
[329729480,1718625054698,-241.53,0.0002589,2]
[329729483,1718625054765,-4918.54598741,0.00025991,2]
[329729485,1718625054778,-151.0,0.00025991,7]
[329729486,1718625054791,-154.057879,0.00025991,7]
[329729489,1718625054807,-151.0,0.00025991,7]
[329729491,1718625054827,-151.0,0.00025991,7]
[329729493,1718625054846,-151.0,0.00025991,7]
[329729494,1718625054864,-369.56846571,0.00026,2]
[329729496,1718625054879,-151.0,0.00026,7]
[329729498,1718625054908,-151.0,0.00026,7]
[329729501,1718625054961,-151.0,0.00026,7]
[329729503,1718625054973,-255.493743,0.00026,7]
[329729505,1718625054986,-222.198442,0.00026,7]
[329729506,1718625054998,-222.198442,0.00026,7]
[329729508,1718625055011,-3172.4,0.00026,2]
[329729510,1718625055027,-151.0,0.00026,7]
[329729511,1718625055067,-151.0,0.00026,7]
[329729513,1718625055097,-1062.0,0.00026,2]
[329729516,1718625055126,-151.0,0.00026,7]
[329729518,1718625055150,-151.0,0.00026,7]
[329729520,1718625055172,-428.192811,0.00026,7]
[329729522,1718625055189,-428.192811,0.00026,7]
[329729525,1718625055241,-151.0,0.00026,7]
[329729527,1718625055257,-151.0,0.00026,7]
[329729529,1718625055278,-151.0,0.00026,7]
[329729531,1718625055290,-178.696019,0.00026,7]
[329729532,1718625055310,-178.696019,0.00026,7]
[329729534,1718625055326,-154.489649,0.00026,7]
[329729535,1718625055358,-151.0,0.00026,7]
[329729536,1718625055374,-375.65,0.00026,2]
[329729538,1718625055392,-375.65,0.00026,2]
[329729540,1718625055417,-375.65,0.00026,2]
[329729542,1718625055433,-375.65,0.00026,2]
[329729544,1718625055463,-375.65,0.00026,2]
[329729546,1718625055485,-375.65,0.00026,2]
[329729548,1718625055525,-375.65,0.00026,2]
[329729550,1718625055537,-375.65,0.00026,2]
[329729552,1718625055550,-375.65,0.00026,2]
[329729554,1718625055564,-375.65,0.00026,2]
[329729555,1718625055578,-375.65,0.00026,2]
[329729557,1718625055594,-375.65,0.00026,2]
[329729558,1718625055610,-375.65,0.00026,2]
[329729560,1718625055630,-375.65,0.00026,2]
[329729562,1718625055652,-375.65,0.00026,2]
[329729563,1718625055687,-375.65,0.00026,2]
[329729565,1718625055710,-375.65,0.00026,2]
[329729567,1718625055730,-375.65,0.00026,2]
[329729569,1718625055756,-375.65,0.00026,2]
[329729570,1718625055787,-375.65,0.00026,2]
[329729572,1718625055817,-375.65,0.00026,2]
[329729574,1718625055839,-375.65,0.00026,2]
[329729576,1718625055858,-375.65,0.00026,2]
[329729578,1718625055875,-375.65,0.00026,2]
[329729581,1718625055893,-375.65,0.00026,2]
[329729583,1718625055909,-375.65,0.00026,2]
[329729585,1718625055947,-375.65,0.00026,2]
[329729588,1718625055985,-375.65,0.00026,2]
[329729591,1718625056010,-375.65,0.00026,2]
[329729593,1718625056031,-375.65,0.00026,2]
[329729596,1718625056049,-375.65,0.00026,2]
[329729598,1718625056063,-375.65,0.00026,2]
[329729600,1718625056081,-375.65,0.00026,2]
[329729603,1718625056102,-375.65,0.00026,2]
[329729604,1718625056117,-375.65,0.00026,2]
[329729607,1718625056135,-375.65,0.00026,2]
[329729609,1718625056150,-375.65,0.00026,2]
[329729611,1718625056165,-375.65,0.00026,2]
[329729614,1718625056185,-375.65,0.00026,2]
[329729616,1718625056201,-375.65,0.00026,2]
[329729619,1718625056232,-375.65,0.00026,2]
[329729621,1718625056250,-375.65,0.00026,2]
[329729624,1718625056278,-375.65,0.00026,2]
[329729626,1718625056320,-375.65,0.00026,2]
[329729628,1718625056347,-375.65,0.00026,2]
[329729630,1718625056369,-375.65,0.00026,2]
[329729633,1718625056394,-375.65,0.00026,2]
[329729635,1718625056409,-375.65,0.00026,2]
[329729637,1718625056424,-375.65,0.00026,2]
[329729639,1718625056442,-375.65,0.00026,2]
[329729642,1718625056459,-375.65,0.00026,2]
[329729644,1718625056481,-375.65,0.00026,2]
[329729647,1718625056504,-375.65,0.00026,2]
[329729650,1718625056530,-375.65,0.00026,2]
[329729652,1718625056548,-375.65,0.00026,2]
[329729654,1718625056579,-375.65,0.00026,2]
[329729656,1718625056618,-375.65,0.00026,2]
[329729658,1718625056643,-375.65,0.00026,2]
[329729660,1718625056673,-375.65,0.00026,2]
[329729662,1718625056714,-375.65,0.00026,2]
[329729665,1718625056748,-375.65,0.00026,2]
[329729667,1718625056772,-375.65,0.00026,2]
[329729669,1718625056793,-375.65,0.00026,2]
[329729671,1718625056832,-170.33,0.00026022,2]
[329729673,1718625056863,-151.0,0.00026138,5]
[329729675,1718625056886,-513.28850771,0.00026206,2]
[329729678,1718625056905,-1500.0,0.0002627,2]
[329729681,1718625056937,-150.0,0.00026299,2]
[329729683,1718625056953,-2502.94,0.000263,2]
[329729686,1718625056973,-3101.0,0.00026301,2]
[329729688,1718625056993,-159.701652,0.00026302,2]
[329729691,1718625057052,-193.30867,0.00026302,2]
[329729693,1718625057094,-193.308666,0.00026302,2]
[329729695,1718625057108,-159.701651,0.00026302,2]
[329729697,1718625057141,-3271.068988,0.00026302,2]
[329729700,1718625057176,-150.867959,0.00026302,2]
[329729702,1718625057195,-213.21288,0.00026302,2]
[329729705,1718625057212,-357.883112,0.00026302,2]
[329729707,1718625057226,-7059.190538,0.00026302,2]
[329729710,1718625057245,-6503.766023,0.00026302,2]
[329729712,1718625057259,-3232.697035,0.00026302,2]
[329729714,1718625057296,-302.315451,0.00026302,2]
[329729716,1718625057321,-10588.785808,0.00026302,2]
[329729718,1718625057350,-195.932698,0.00026302,2]
[329729720,1718625057372,-449.866465,0.00026302,2]
[329729722,1718625057394,-3271.068988,0.00026302,2]
[329729725,1718625057418,-150.0,0.00026334,2]
[329729728,1718625057449,-150.0,0.00026349,2]
[329729731,1718625057469,-197.92115591,0.00026425,2]
[329729733,1718625057489,-150.0,0.00026434,2]
[329729735,1718625057510,-150.0,0.00026437,2]
[329729737,1718625057543,-150.0,0.00026438,2]
[329729739,1718625057562,-150.0,0.00026451,2]
[329729740,1718625057577,-423.1,0.00026466,2]
[329729741,1718625057593,-823.47,0.00026466,2]
[329729742,1718625057612,-150.0,0.00026466,2]
[329729743,1718625057631,-6330.16650482,0.00026484,2]